fUSD/lending_fUSD_20260610
["ID","MTS","AMOUNT","RATE_DAILY","PERIOD"]
[424655635,1781034672000,-3328.71680134,0.00030736,4]
[424655637,1781034672000,-5770.39,0.0003075,2]
[424655639,1781034672000,-2277.0,0.00030798,2]
[424655645,1781034672000,-5000.0,0.00030798,2]
[424655647,1781034672000,-5000.0,0.00030798,2]
[424655642,1781034672000,-5000.0,0.00030798,2]
[424655643,1781034672000,-5000.0,0.00030798,2]
[424655638,1781034672000,-22223.2,0.0003075,2]
[424655644,1781034672000,-5000.0,0.00030798,2]
[424655622,1781034672000,-551.97510396,0.00030622,2]
[424655632,1781034672000,-179.97120458,0.00030709,2]
[424655624,1781034672000,-551.97510396,0.00030629,2]
[424655604,1781034672000,-151.0,0.00030482,7]
[424655618,1781034672000,-1121.71,0.000306,7]
[424655590,1781034672000,-774.886158,0.00030482,7]
[424655646,1781034672000,-5000.0,0.00030798,2]
[424655591,1781034672000,-774.886168,0.00030482,7]
[424655592,1781034672000,-151.0,0.00030482,7]
[424655596,1781034672000,-388.607727,0.00030482,7]
[424655597,1781034672000,-151.0,0.00030482,7]
[424655593,1781034672000,-388.607731,0.00030482,7]
[424655595,1781034672000,-388.607731,0.00030482,7]
[424655594,1781034672000,-388.607731,0.00030482,7]
[424655601,1781034672000,-428.871314,0.00030482,7]
[424655598,1781034672000,-151.0,0.00030482,7]
[424655599,1781034672000,-246.816254,0.00030482,7]
[424655615,1781034672000,-2000.0,0.000305,2]
[424655600,1781034672000,-428.871314,0.00030482,7]
[424655603,1781034672000,-428.87132,0.00030482,7]
[424655607,1781034672000,-288.517669,0.00030482,7]
[424655608,1781034672000,-10230.44,0.000305,14]
[424655606,1781034672000,-151.0,0.00030482,7]
[424655605,1781034672000,-151.0,0.00030482,7]
[424655613,1781034672000,-15888.92,0.000305,2]
[424655611,1781034672000,-22500.0,0.000305,2]
[424655609,1781034672000,-22500.0,0.000305,2]
[424655610,1781034672000,-2500.0,0.000305,2]
[424655612,1781034672000,-2499.95,0.000305,2]
[424655614,1781034672000,-25000.0,0.000305,2]
[424655616,1781034672000,-150.0,0.00030547,120]
[424655602,1781034672000,-428.871314,0.00030482,7]
[424655589,1781034672000,-774.886158,0.00030482,7]
[424655648,1781034672000,-5000.0,0.00030798,2]
[424655650,1781034672000,-250.0,0.00030798,2]
[424655677,1781034672000,-833.51957922,0.00030966,2]
[424655679,1781034672000,-896.93385626,0.00030966,2]
[424655682,1781034672000,-956.88973746,0.00030967,2]
[424655681,1781034672000,-903.59567786,0.00030967,2]
[424655683,1781034672000,-826.57253345,0.00030967,2]
[424655686,1781034672000,-862.12197688,0.00030982,2]
[424655689,1781034672000,-862.45616482,0.00030982,2]
[424655695,1781034672000,-950.33065986,0.00030988,2]
[424655691,1781034672000,-1198.57645768,0.00030988,2]
[424655688,1781034672000,-883.61046978,0.00030982,2]
[424655694,1781034672000,-2381.57109279,0.00030988,2]
[424655687,1781034672000,-823.99881267,0.00030982,2]
[424655678,1781034672000,-778.22069929,0.00030966,2]
[424655692,1781034672000,-1334.77866816,0.00030988,2]
[424655696,1781034672000,-1957.04924863,0.00030988,2]
[424655693,1781034672000,-846.998832,0.00030988,2]
[424655697,1781034672000,-804.1086952,0.00030988,2]
[424655690,1781034672000,-886.06629174,0.00030982,2]
[424655700,1781034672000,-1344.23741973,0.00030988,2]
[424655699,1781034672000,-882.78117298,0.00030988,2]
[424655705,1781034672000,-838.04453169,0.00030988,2]
[424655703,1781034672000,-923.53965854,0.00030988,2]
[424655701,1781034672000,-804.64979969,0.00030988,2]
[424655704,1781034672000,-2556.76086777,0.00030988,2]
[424655640,1781034672000,-2211.0,0.00030798,2]
[424655702,1781034672000,-957.12317746,0.00030988,2]
[424655698,1781034672000,-1011.97146273,0.00030988,2]
[424655684,1781034672000,-908.65281223,0.00030982,2]
[424655706,1781034672000,-850.92981314,0.00030988,2]
[424655680,1781034672000,-789.96991816,0.00030966,2]
[424655676,1781034672000,-837.91563913,0.00030966,2]
[424655649,1781034672000,-250.0,0.00030798,2]
[424655654,1781034672000,-150.0,0.00030821,120]
[424655651,1781034672000,-250.0,0.00030798,2]
[424655652,1781034672000,-250.0,0.00030798,2]
[424655653,1781034672000,-277.71236214,0.00030798,2]
[424655655,1781034672000,-1639.76981995,0.0003084,2]
[424655659,1781034672000,-200.0,0.0003091,2]
[424655656,1781034672000,-204.0,0.0003084,30]
[424655658,1781034672000,-200.0,0.0003091,2]
[424655657,1781034672000,-172.0,0.00030878,120]
[424655661,1781034672000,-551.97510396,0.00030952,2]
[424655664,1781034672000,-818.87821399,0.00030966,2]
[424655660,1781034672000,-200.0,0.0003091,2]
[424655666,1781034672000,-762.8913764,0.00030966,2]
[424655663,1781034672000,-1426.02692129,0.00030966,2]
[424655674,1781034672000,-861.50431885,0.00030966,2]
[424655675,1781034672000,-1049.84927606,0.00030966,2]
[424655673,1781034672000,-900.70348755,0.00030966,2]
[424655671,1781034672000,-850.04081794,0.00030966,2]
[424655662,1781034672000,-150.0,0.00030958,120]
[424655685,1781034672000,-766.93595599,0.00030982,2]
[424655669,1781034672000,-1027.7688845,0.00030966,2]
[424655665,1781034672000,-964.06467491,0.00030966,2]
[424655670,1781034672000,-823.68044709,0.00030966,2]
[424655667,1781034672000,-963.01145157,0.00030966,2]
[424655668,1781034672000,-772.65482347,0.00030966,2]
[424655672,1781034672000,-777.924288,0.00030966,2]
[424655749,1781034673000,-200.0,0.0003113,4]
[424655744,1781034673000,-250.0,0.00031129,2]
[424655745,1781034673000,-250.0,0.00031129,2]
[424655742,1781034673000,-250.0,0.00031129,2]
[424655740,1781034673000,-5000.0,0.00031129,2]
[424655738,1781034673000,-5000.0,0.00031129,2]
[424655739,1781034673000,-5000.0,0.00031129,2]
[424655735,1781034673000,-5000.0,0.00031129,2]
[424655747,1781034673000,-250.0,0.00031129,2]
[424655741,1781034673000,-5000.0,0.00031129,2]
[424655733,1781034673000,-1121.71,0.000311,7]
[424655751,1781034673000,-1000.0,0.000312,7]
[424655743,1781034673000,-250.0,0.00031129,2]
[424655748,1781034673000,-250.0,0.00031129,2]
[424655750,1781034673000,-1162.49,0.00031133,30]
[424655754,1781034673000,-500.0,0.00031231,2]
[424655752,1781034673000,-500.0,0.00031204,120]
[424655753,1781034673000,-1000.0,0.00031204,120]
[424655758,1781034673000,-227.0,0.00031251,30]
[424655765,1781034673000,-697.0,0.00031305,30]
[424655759,1781034673000,-551.97510396,0.00031265,2]
[424655757,1781034673000,-166.6875,0.00031233,2]
[424655764,1781034673000,-200.0,0.00031303,2]
[424655737,1781034673000,-5000.0,0.00031129,2]
[424655746,1781034673000,-250.0,0.00031129,2]
[424655736,1781034673000,-5000.0,0.00031129,2]
[424655716,1781034673000,-174.27612789,0.00031,120]
[424655732,1781034673000,-10230.44,0.000311,14]
[424655707,1781034673000,-861.16452899,0.00030992,2]
[424655708,1781034673000,-850.95128325,0.00030992,2]
[424655709,1781034673000,-200.0,0.00030994,2]
[424655711,1781034673000,-250.0,0.00030997,7]
[424655710,1781034673000,-250.0,0.00030997,7]
[424655713,1781034673000,-329.7,0.00031,11]
[424655712,1781034673000,-250.0,0.00030997,7]
[424655718,1781034673000,-10809.26304122,0.00031,2]
[424655720,1781034673000,-250.0,0.00031,30]
[424655717,1781034673000,-343.19,0.00031,120]
[424655714,1781034673000,-13000.0,0.00031,2]
[424655734,1781034673000,-200.0,0.000311,4]
[424655715,1781034673000,-39999.999999,0.00031,2]
[424655727,1781034673000,-534.74,0.00031087,2]
[424655728,1781034673000,-6465.80478824,0.00031094,4]
[424655726,1781034673000,-199.41,0.0003107,30]
[424655729,1781034673000,-2024.08696035,0.00031094,4]
[424655761,1781034673000,-390.0,0.00031274,3]
[424655721,1781034673000,-150.0,0.00031011,2]
[424655730,1781034673000,-3328.71680134,0.00031094,4]
[424655723,1781034673000,-898.56973585,0.00031036,2]
[424655722,1781034673000,-2043.4238073,0.00031036,2]
[424655725,1781034673000,-179.97120458,0.00031057,2]
[424655724,1781034673000,-798.5698849,0.00031036,2]
[424655719,1781034673000,-630.74,0.00031,120]
[424655762,1781034673000,-2324.0,0.00031277,3]
[424655731,1781034673000,-150.0,0.00031095,120]
[424655756,1781034673000,-150.0,0.00031232,120]
[424655796,1781034673000,-650.0,0.0003146,2]
[424655792,1781034673000,-500.0,0.00031458,60]
[424655797,1781034673000,-200.0,0.0003146,2]
[424655795,1781034673000,-230.0,0.0003146,2]
[424655798,1781034673000,-5000.0,0.0003146,2]
[424655790,1781034673000,-3328.71680134,0.00031451,4]
[424655800,1781034673000,-5000.0,0.0003146,2]
[424655799,1781034673000,-5000.0,0.0003146,2]
[424655802,1781034673000,-5000.0,0.0003146,2]
[424655805,1781034673000,-250.0,0.0003146,2]
[424655804,1781034673000,-250.0,0.0003146,2]
[424655801,1781034673000,-5000.0,0.0003146,2]
[424655803,1781034673000,-5000.0,0.0003146,2]
[424655807,1781034673000,-250.0,0.0003146,2]
[424655808,1781034673000,-250.0,0.0003146,2]
[424655809,1781034673000,-250.0,0.0003146,2]
[424655810,1781034673000,-201.07443101,0.000315,2]
[424655816,1781034673000,-1000.0,0.00031506,120]
[424655814,1781034673000,-1000.0,0.00031506,120]
[424655812,1781034673000,-150.0,0.00031506,120]
[424655815,1781034673000,-1000.0,0.00031506,120]
[424655813,1781034673000,-1000.0,0.00031506,120]
[424655811,1781034673000,-150.0,0.000315,2]
[424655817,1781034673000,-1000.0,0.00031506,120]
[424655755,1781034673000,-179.0,0.00031231,2]
[424655794,1781034673000,-500.0,0.00031458,60]
[424655793,1781034673000,-800.0,0.00031458,60]
[424655806,1781034673000,-250.0,0.0003146,2]
[424655789,1781034673000,-2024.08696035,0.00031451,4]
[424655791,1781034673000,-160.0,0.00031457,3]
[424655763,1781034673000,-2000.0,0.000313,2]
[424655760,1781034673000,-6069.0,0.00031274,10]
[424655767,1781034673000,-79194.15708217,0.0003135,2]
[424655766,1781034673000,-839.0,0.00031305,30]
[424655775,1781034673000,-562.0,0.00031372,30]
[424655768,1781034673000,-152.0,0.00031356,17]
[424655777,1781034673000,-817.0,0.00031372,30]
[424655770,1781034673000,-700.0,0.00031366,30]
[424655776,1781034673000,-2206.0,0.00031372,30]
[424655774,1781034673000,-781.0,0.00031372,30]
[424655778,1781034673000,-653.0,0.00031373,30]
[424655771,1781034673000,-2256.0,0.00031366,30]
[424655773,1781034673000,-150.0,0.00031369,120]
[424655786,1781034673000,-551.97510396,0.00031424,2]
[424655769,1781034673000,-297.65,0.00031366,30]
[424655787,1781034673000,-1227.23284655,0.0003143,4]
[424655788,1781034673000,-6465.80478824,0.00031451,4]
[424655784,1781034673000,-466.45946294,0.000314,30]
[424655782,1781034673000,-343.0,0.00031373,30]
[424655785,1781034673000,-179.97120458,0.00031405,2]
[424655780,1781034673000,-735.0,0.00031373,30]
[424655781,1781034673000,-1271.0,0.00031373,30]
[424655779,1781034673000,-3344.0,0.00031373,30]
[424655772,1781034673000,-4465.0,0.00031366,30]
[424655783,1781034673000,-350.0,0.00031392,19]
[424655837,1781034674000,-557.24,0.000316,7]
[424655835,1781034674000,-10230.44,0.000316,14]
[424655838,1781034674000,-150.0,0.0003161,2]
[424655841,1781034674000,-150.0,0.0003161,2]
[424655839,1781034674000,-150.0,0.0003161,2]
[424655836,1781034674000,-32561.01,0.000316,2]
[424655846,1781034674000,-343.19,0.00031685,120]
[424655844,1781034674000,-150.0,0.00031643,120]
[424655843,1781034674000,-1162.49,0.00031631,30]
[424655845,1781034674000,-150.0,0.00031644,2]
[424655847,1781034674000,-290.0,0.00031687,3]
[424655834,1781034674000,-200.0,0.0003159,2]
[424655848,1781034674000,-214.88718337,0.00031701,60]
[424655842,1781034674000,-186.35577983,0.0003161,2]
[424655840,1781034674000,-150.0,0.0003161,2]
[424655821,1781034674000,-1000.0,0.00031506,120]
[424655833,1781034674000,-650.0,0.0003159,2]
[424655850,1781034674000,-180.0,0.00031714,5]
[424655822,1781034674000,-1000.0,0.00031506,120]
[424655819,1781034674000,-1000.0,0.00031506,120]
[424655818,1781034674000,-1000.0,0.00031506,120]
[424655820,1781034674000,-1000.0,0.00031506,120]
[424655824,1781034674000,-265.46853992,0.00031506,120]
[424655829,1781034674000,-693.39197629,0.00031525,2]
[424655825,1781034674000,-1000.0,0.00031507,40]
[424655828,1781034674000,-151.0,0.00031525,2]
[424655823,1781034674000,-1000.0,0.00031506,120]
[424655826,1781034674000,-150.0,0.00031507,2]
[424655832,1781034674000,-150.315792,0.00031579,2]
[424655831,1781034674000,-182.600014,0.00031578,5]
[424655830,1781034674000,-2000.0,0.00031576,7]
[424655827,1781034674000,-335.0,0.00031513,30]
[424655852,1781034674000,-160.0,0.00031732,3]
[424655856,1781034674000,-1358.0,0.0003178,2]
[424655851,1781034674000,-200.0,0.00031714,5]
[424655873,1781034674000,-250.0,0.00031791,2]
[424655868,1781034674000,-5000.0,0.00031791,2]
[424655875,1781034674000,-7493.01978305,0.00031796,2]
[424655876,1781034674000,-6465.80478824,0.00031809,30]
[424655877,1781034674000,-2024.08696035,0.00031809,30]
[424655874,1781034674000,-250.0,0.00031791,2]
[424655871,1781034674000,-250.0,0.00031791,2]
[424655880,1781034674000,-160.0,0.00031822,3]
[424655881,1781034674000,-160.0,0.00031822,3]
[424655883,1781034674000,-1711.23230555,0.00031835,2]
[424655882,1781034674000,-160.0,0.00031822,3]
[424655885,1781034674000,-915.46965168,0.00031835,2]
[424655884,1781034674000,-982.65385679,0.00031835,2]
[424655849,1781034674000,-650.0,0.00031714,5]
[424655879,1781034674000,-630.74,0.00031822,120]
[424655872,1781034674000,-250.0,0.00031791,2]
[424655878,1781034674000,-3328.71680134,0.00031809,30]
[424655870,1781034674000,-250.0,0.00031791,2]
[424655853,1781034674000,-160.0,0.00031732,3]
[424655869,1781034674000,-5000.0,0.00031791,2]
[424655854,1781034674000,-179.97120458,0.00031752,2]
[424655857,1781034674000,-382.0,0.0003178,2]
[424655859,1781034674000,-1227.0,0.0003178,2]
[424655855,1781034674000,-3555.0,0.0003178,2]
[424655860,1781034674000,-1214.0,0.0003178,2]
[424655858,1781034674000,-1274.0,0.0003178,2]
[424655863,1781034674000,-179.1094424,0.0003178,120]
[424655866,1781034674000,-5000.0,0.00031791,2]
[424655865,1781034674000,-5000.0,0.00031791,2]
[424655864,1781034674000,-166.6875,0.00031781,2]
[424655861,1781034674000,-3643.0,0.0003178,2]
[424655867,1781034674000,-5000.0,0.00031791,2]
[424655862,1781034674000,-6075.0,0.0003178,2]
[424655906,1781034675000,-1034.94739779,0.00031851,2]
[424655910,1781034675000,-1140.39679183,0.00031857,2]
[424655912,1781034675000,-964.93043424,0.00031857,2]
[424655908,1781034675000,-1601.73440179,0.00031857,2]
[424655911,1781034675000,-2348.45909836,0.00031857,2]
[424655909,1781034675000,-2857.88531135,0.00031857,2]
[424655913,1781034675000,-1214.36575528,0.00031857,2]
[424655915,1781034675000,-1613.08490368,0.00031857,2]
[424655921,1781034675000,-1033.39743479,0.00031861,2]
[424655916,1781034675000,-3068.11304132,0.00031857,2]
[424655917,1781034675000,-1148.54781296,0.00031857,2]
[424655919,1781034675000,-1005.65343802,0.00031857,2]
[424655918,1781034675000,-1108.24759025,0.00031857,2]
[424655920,1781034675000,-1021.11577577,0.00031857,2]
[424655923,1781034675000,-160.0,0.00031892,3]
[424655907,1781034675000,-1438.29174921,0.00031857,2]
[424655914,1781034675000,-1059.33740758,0.00031857,2]
[424655905,1781034675000,-1063.27955009,0.00031851,2]
[424655887,1781034675000,-988.41653651,0.00031835,2]
[424655903,1781034675000,-1034.54637225,0.00031851,2]
[424655922,1781034675000,-1021.1415399,0.00031861,2]
[424655888,1781034675000,-1020.04898153,0.00031835,2]
[424655886,1781034675000,-927.18578816,0.00031835,2]
[424655889,1781034675000,-1033.80518261,0.00031835,2]
[424655891,1781034675000,-933.86483914,0.00031835,2]
[424655890,1781034675000,-1259.81913127,0.00031835,2]
[424655892,1781034675000,-1005.49876696,0.00031835,2]
[424655893,1781034675000,-1000.22349506,0.00031835,2]
[424655895,1781034675000,-947.96390179,0.00031835,2]
[424655894,1781034675000,-1076.32062751,0.00031835,2]
[424655897,1781034675000,-965.57975963,0.00031835,2]
[424655896,1781034675000,-1084.31481343,0.00031835,2]
[424655899,1781034675000,-1003.62,0.00031847,7]
[424655898,1781034675000,-991.88704014,0.00031835,2]
[424655901,1781034675000,-1090.38337468,0.00031851,2]
[424655900,1781034675000,-1095.39,0.00031847,7]
[424655902,1781034675000,-920.32314719,0.00031851,2]
[424655904,1781034675000,-988.79857521,0.00031851,2]
[424655924,1781034675000,-2452.10856876,0.00031906,2]
[424655929,1781034675000,-1281.01,0.00032,7]
[424655926,1781034675000,-958.28386188,0.00031906,2]
[424655949,1781034675000,-3328.71680134,0.00032166,30]
[424655952,1781034675000,-242.0,0.00032219,2]
[424655948,1781034675000,-2024.08696035,0.00032166,30]
[424655951,1781034675000,-160.0,0.00032212,3]
[424655953,1781034675000,-369.19371428,0.00032222,30]
[424655950,1781034675000,-1599.6,0.0003221,5]
[424655955,1781034675000,-50000.0,0.00032232,120]
[424655954,1781034675000,-50000.0,0.00032232,30]
[424655956,1781034675000,-50000.0,0.00032232,90]
[424655959,1781034675000,-200.0,0.00032264,2]
[424655958,1781034675000,-200.0,0.00032264,2]
[424655961,1781034675000,-200.0,0.00032264,2]
[424655960,1781034675000,-200.0,0.00032264,2]
[424655957,1781034675000,-50000.0,0.00032232,60]
[424655963,1781034675000,-200.0,0.00032264,2]
[424655962,1781034675000,-200.0,0.00032264,2]
[424655927,1781034675000,-6426.36,0.0003192,7]
[424655946,1781034675000,-1162.49,0.0003213,30]
[424655947,1781034675000,-6465.80478824,0.00032166,30]
[424655964,1781034675000,-200.0,0.00032264,2]
[424655941,1781034675000,-250.0,0.00032123,2]
[424655945,1781034675000,-200.0,0.0003213,4]
[424655925,1781034675000,-1078.28368301,0.00031906,2]
[424655928,1781034675000,-200.0,0.00032,12]
[424655931,1781034675000,-152.0,0.0003201,18]
[424655933,1781034675000,-179.97120458,0.000321,2]
[424655932,1781034675000,-350.0,0.00032038,22]
[424655930,1781034675000,-700.0,0.00032,2]
[424655935,1781034675000,-19267.92898291,0.00032109,2]
[424655965,1781034675000,-200.0,0.00032264,2]
[424655937,1781034675000,-5000.0,0.00032123,2]
[424655934,1781034675000,-378.13809427,0.000321,30]
[424655939,1781034675000,-5000.0,0.00032123,2]
[424655938,1781034675000,-5000.0,0.00032123,2]
[424655942,1781034675000,-250.0,0.00032123,2]
[424655940,1781034675000,-250.0,0.00032123,2]
[424655944,1781034675000,-551.97510396,0.00032129,2]
[424655936,1781034675000,-5000.0,0.00032123,2]
[424655943,1781034675000,-250.0,0.00032123,2]
[424655986,1781034676000,-200.0,0.00032264,2]
[424655990,1781034676000,-200.0,0.00032264,2]
[424655987,1781034676000,-200.0,0.00032264,2]
[424655988,1781034676000,-200.0,0.00032264,2]
[424655989,1781034676000,-200.0,0.00032264,2]
[424655992,1781034676000,-200.0,0.00032264,2]
[424655991,1781034676000,-200.0,0.00032264,2]
[424655994,1781034676000,-200.0,0.00032264,2]
[424655996,1781034676000,-200.0,0.00032264,2]
[424655997,1781034676000,-200.0,0.00032264,2]
[424655995,1781034676000,-200.0,0.00032264,2]
[424655999,1781034676000,-200.0,0.00032264,2]
[424655998,1781034676000,-200.0,0.00032264,2]
[424656002,1781034676000,-200.0,0.00032264,2]
[424655985,1781034676000,-200.0,0.00032264,2]
[424655993,1781034676000,-500.0,0.00032264,2]
[424655984,1781034676000,-200.0,0.00032264,2]
[424655975,1781034676000,-200.0,0.00032264,2]
[424655983,1781034676000,-200.0,0.00032264,2]
[424656004,1781034676000,-200.0,0.00032264,2]
[424655966,1781034676000,-200.0,0.00032264,2]
[424655968,1781034676000,-200.0,0.00032264,2]
[424655969,1781034676000,-200.0,0.00032264,2]
[424655967,1781034676000,-200.0,0.00032264,2]
[424655970,1781034676000,-200.0,0.00032264,2]
[424655973,1781034676000,-200.0,0.00032264,2]
[424655981,1781034676000,-200.0,0.00032264,2]
[424655976,1781034676000,-200.0,0.00032264,2]
[424655972,1781034676000,-200.0,0.00032264,2]
[424655974,1781034676000,-200.0,0.00032264,2]
[424655977,1781034676000,-200.0,0.00032264,2]
[424655978,1781034676000,-200.0,0.00032264,2]
[424655979,1781034676000,-200.0,0.00032264,2]
[424655982,1781034676000,-200.0,0.00032264,2]
[424655980,1781034676000,-200.0,0.00032264,2]
[424655971,1781034676000,-200.0,0.00032264,2]
[424656000,1781034676000,-200.0,0.00032264,2]
[424656003,1781034676000,-200.0,0.00032264,2]
[424656006,1781034676000,-200.0,0.00032264,2]
[424656027,1781034676000,-170.0,0.00032329,10]
[424656024,1781034676000,-697.0,0.00032305,30]
[424656028,1781034676000,-166.6875,0.00032329,2]
[424656029,1781034676000,-150.0,0.00032345,2]
[424656030,1781034676000,-151.3526754,0.00032345,2]
[424656034,1781034676000,-150.0,0.00032345,2]
[424656035,1781034676000,-150.0,0.00032345,2]
[424656025,1781034676000,-839.0,0.00032305,30]
[424656036,1781034676000,-7493.01978305,0.00032354,2]
[424656031,1781034676000,-150.0,0.00032345,2]
[424656033,1781034676000,-150.0,0.00032345,2]
[424656037,1781034676000,-700.0,0.00032366,30]
[424656040,1781034676000,-781.0,0.00032372,30]
[424656039,1781034676000,-4465.0,0.00032366,30]
[424656041,1781034676000,-562.0,0.00032372,30]
[424656001,1781034676000,-200.0,0.00032264,2]
[424656032,1781034676000,-150.0,0.00032345,2]
[424656026,1781034676000,-180.0,0.00032329,10]
[424656038,1781034676000,-2256.0,0.00032366,30]
[424656022,1781034676000,-800.0,0.0003228,60]
[424656007,1781034676000,-200.0,0.00032264,2]
[424656023,1781034676000,-500.0,0.0003228,60]
[424656009,1781034676000,-200.0,0.00032264,2]
[424656011,1781034676000,-170.0,0.00032264,2]
[424656005,1781034676000,-200.0,0.00032264,2]
[424656010,1781034676000,-200.0,0.00032264,2]
[424656012,1781034676000,-200.0,0.00032264,2]
[424656013,1781034676000,-200.0,0.00032264,2]
[424656008,1781034676000,-200.0,0.00032264,2]
[424656015,1781034676000,-500.0,0.00032264,2]
[424656014,1781034676000,-500.0,0.00032264,2]
[424656019,1781034676000,-549.0,0.00032264,2]
[424656017,1781034676000,-500.0,0.00032264,2]
[424656018,1781034676000,-500.0,0.00032264,2]
[424656020,1781034676000,-163.0,0.00032264,2]
[424656016,1781034676000,-500.0,0.00032264,2]
[424656021,1781034676000,-551.97510396,0.00032277,2]
[424656073,1781034677000,-160.0,0.00032696,11]
[424656074,1781034677000,-1035.53101,0.000327,120]
[424656069,1781034677000,-1162.49,0.00032628,30]
[424656066,1781034677000,-2324.0,0.00032602,11]
[424656065,1781034677000,-150.0,0.00032562,2]
[424656067,1781034677000,-2110.0,0.00032602,2]
[424656070,1781034677000,-343.19,0.00032644,120]
[424656068,1781034677000,-942.73314658,0.00032604,2]
[424656075,1781034677000,-200.0,0.00032701,60]
[424656084,1781034677000,-2246.77962,0.00032783,30]
[424656071,1781034677000,-630.74,0.00032644,120]
[424656077,1781034677000,-2324.0,0.0003275,11]
[424656076,1781034677000,-1000.0,0.00032707,14]
[424656082,1781034677000,-150.0,0.0003276,2]
[424656078,1781034677000,-150.0,0.0003276,2]
[424656079,1781034677000,-150.0,0.0003276,2]
[424656080,1781034677000,-150.0,0.0003276,2]
[424656083,1781034677000,-150.0,0.0003276,2]
[424656061,1781034677000,-6465.80478824,0.00032523,30]
[424656072,1781034677000,-152.0,0.00032664,19]
[424656063,1781034677000,-3328.71680134,0.00032523,30]
[424656047,1781034677000,-1271.0,0.00032373,30]
[424656062,1781034677000,-2024.08696035,0.00032523,30]
[424656081,1781034677000,-150.0,0.0003276,2]
[424656042,1781034677000,-2206.0,0.00032372,30]
[424656043,1781034677000,-817.0,0.00032372,30]
[424656045,1781034677000,-3344.0,0.00032373,30]
[424656044,1781034677000,-653.0,0.00032373,30]
[424656046,1781034677000,-735.0,0.00032373,30]
[424656048,1781034677000,-343.0,0.00032373,30]
[424656050,1781034677000,-1087.96503322,0.0003243,14]
[424656056,1781034677000,-250.0,0.00032454,2]
[424656049,1781034677000,-7493.01978305,0.00032424,2]
[424656051,1781034677000,-179.97120458,0.00032448,2]
[424656052,1781034677000,-5000.0,0.00032454,2]
[424656053,1781034677000,-5000.0,0.00032454,2]
[424656055,1781034677000,-250.0,0.00032454,2]
[424656054,1781034677000,-5000.0,0.00032454,2]
[424656057,1781034677000,-250.0,0.00032454,2]
[424656058,1781034677000,-2324.0,0.00032462,11]
[424656060,1781034677000,-1000.0,0.00032493,14]
[424656059,1781034677000,-17700.0,0.00032463,7]
[424656064,1781034677000,-160.0,0.00032557,11]
[424656085,1781034677000,-5000.0,0.00032785,2]
[424656095,1781034677000,-271.87619647,0.0003281,2]
[424656087,1781034677000,-250.0,0.00032785,2]
[424656112,1781034677000,-1000.0,0.00032876,30]
[424656116,1781034677000,-1000.0,0.00032876,30]
[424656118,1781034677000,-1000.0,0.00032876,30]
[424656113,1781034677000,-1000.0,0.00032876,30]
[424656117,1781034677000,-1000.0,0.00032876,30]
[424656111,1781034677000,-1000.0,0.00032876,30]
[424656115,1781034677000,-1000.0,0.00032876,30]
[424656114,1781034677000,-1000.0,0.00032876,30]
[424656120,1781034677000,-1000.0,0.00032877,10]
[424656121,1781034677000,-1000.0,0.00032877,10]
[424656123,1781034677000,-1000.0,0.00032877,10]
[424656125,1781034677000,-1000.0,0.00032877,10]
[424656122,1781034677000,-1000.0,0.00032877,10]
[424656124,1781034677000,-1000.0,0.00032877,10]
[424656128,1781034677000,-1000.0,0.00032877,10]
[424656126,1781034677000,-1000.0,0.00032877,10]
[424656127,1781034677000,-1000.0,0.00032877,10]